bitfinex/quotes_BTCUSD_20230404
["timestamp","ask_amount","ask_price","bid_price","bid_amount"]
[1680651649023,0.04486222,28077.0,28076.0,0.12749814]
[1680651649232,0.02,28077.0,28076.0,0.12749814]
[1680651652753,0.02,28077.0,28076.0,0.31288202]
[1680651653211,0.02,28077.0,28076.0,0.41288202]
[1680651653424,0.02,28077.0,28076.0,0.42890902]
[1680651653858,0.02,28077.0,28076.0,0.32890902]
[1680651654733,0.02,28077.0,28076.0,0.20091593]
[1680651654957,0.02,28077.0,28076.0,0.30091593]
[1680651655193,0.02,28077.0,28076.0,0.20091593]
[1680651656779,0.02,28077.0,28076.0,0.61970498]
[1680651657009,0.02,28077.0,28076.0,0.28659518]
[1680651657247,0.04484558,28077.0,28076.0,0.28659518]
[1680651657489,0.04484558,28077.0,28076.0,0.4734975]
[1680651657706,0.04484558,28077.0,28076.0,0.78320255]
[1680651657962,0.04484558,28077.0,28076.0,0.63717613]
[1680651658417,0.000397,28084.0,28076.0,0.63717613]
[1680651658660,0.000397,28084.0,28080.0,0.12787487]
[1680651658898,0.000397,28085.0,28081.0,0.18996981]
[1680651659126,0.000397,28085.0,28083.0,0.04807]
[1680651659346,0.003,28084.0,28083.0,0.18996681]
[1680651659579,0.000397,28085.0,28083.0,0.04807]
[1680651659823,0.003397,28085.0,28083.0,0.04807]
[1680651660266,0.02504179,28084.0,28083.0,0.04807]
[1680651660929,0.02704179,28084.0,28083.0,0.05307]
[1680651661345,0.002,28084.0,28083.0,0.05307]
[1680651661780,0.002,28084.0,28083.0,0.20947225]
[1680651662287,0.002,28084.0,28083.0,0.005]
[1680651662480,0.37538942,28084.0,28083.0,0.005]
[1680651662701,0.37578642,28084.0,28083.0,0.005]
[1680651663169,0.37578642,28084.0,28083.0,0.021023]
[1680651663396,0.39882821,28084.0,28083.0,0.016023]
[1680651663616,0.02543879,28084.0,28082.0,0.18263635]
[1680651664076,0.04643879,28084.0,28082.0,0.18263635]
[1680651664296,0.04643879,28084.0,28083.0,0.12818628]
[1680651664522,0.04643879,28084.0,28083.0,0.14420928]
[1680651664737,0.02543879,28084.0,28083.0,0.14420928]
[1680651664973,0.03943879,28084.0,28083.0,0.14420928]
[1680651665215,0.02504179,28084.0,28083.0,0.14420928]
[1680651665455,0.04604179,28084.0,28083.0,0.14420928]
[1680651666163,0.04643879,28084.0,28083.0,0.14420928]
[1680651666362,0.04604179,28084.0,28083.0,0.14420928]
[1680651666655,0.04643879,28084.0,28083.0,0.14420928]
[1680651666892,0.04604179,28084.0,28083.0,0.05666822]
[1680651667117,0.04604179,28084.0,28083.0,0.07269122]
[1680651668011,0.04604179,28084.0,28083.0,0.016023]
[1680651668238,0.04604179,28084.0,28083.0,0.0683]
[1680651668239,0.48363845,28084.0,28083.0,0.0683]
[1680651668778,0.04604179,28084.0,28083.0,0.0683]
[1680651669876,0.04604179,28084.0,28083.0,0.068205]
[1680651680461,0.04581976,28084.0,28083.0,0.068205]
[1680651687274,0.021,28084.0,28083.0,0.068205]
[1680651687496,0.021,28084.0,28083.0,0.12937984]
[1680651688138,0.021,28084.0,28083.0,0.068205]
[1680651688337,0.02533872,28084.0,28083.0,0.068205]
[1680651688567,0.02633872,28084.0,28083.0,0.068205]
[1680651690473,0.02533872,28084.0,28083.0,0.068205]
[1680651690686,0.03333872,28084.0,28083.0,0.069205]
[1680651690901,0.02533872,28084.0,28083.0,0.068205]
[1680651691121,0.02633872,28084.0,28083.0,0.068205]
[1680651691343,0.02533872,28084.0,28083.0,0.068205]
[1680651691527,0.03333872,28084.0,28083.0,0.069205]
[1680651692170,0.02533872,28084.0,28083.0,0.068205]
[1680651692407,0.02633872,28084.0,28083.0,0.068205]
[1680651693368,0.02533872,28084.0,28083.0,0.068205]
[1680651693591,0.03333872,28084.0,28083.0,0.069205]
[1680651693804,0.02533872,28084.0,28083.0,0.068205]
[1680651694052,0.03933872,28084.0,28083.0,0.069205]
[1680651699567,0.03933872,28084.0,28083.0,0.1549711]
[1680651700247,0.02533872,28084.0,28083.0,0.1539711]
[1680651700516,0.02733872,28084.0,28083.0,0.51668166]
[1680651700759,0.02533872,28084.0,28083.0,0.63655653]
[1680651700994,0.02733872,28084.0,28083.0,0.99163839]
[1680651701214,0.02733872,28084.0,28083.0,1.06808631]
[1680651701433,0.002,28084.0,28083.0,1.06808631]
[1680651701660,0.002,28084.0,28083.0,1.19594604]
[1680651701883,0.002,28084.0,28083.0,1.06798268]
[1680651702323,0.03644673,28087.0,28083.0,1.05998268]
[1680651702549,0.03644673,28087.0,28085.0,0.016022]
[1680651702771,0.000397,28088.0,28085.0,0.37073256]
[1680651703007,0.000397,28088.0,28087.0,0.016021]
[1680651703640,0.000397,28088.0,28086.0,0.116021]
[1680651703887,0.000397,28088.0,28087.0,0.016021]
[1680651704100,0.008,28088.0,28087.0,0.017021]
[1680651704339,0.03501651,28088.0,28087.0,0.016021]
[1680651704573,0.001,28088.0,28087.0,0.016021]
[1680651704791,0.001,28088.0,28086.0,0.18683742]
[1680651705472,0.1,28087.0,28086.0,0.18683742]
[1680651706132,0.1,28087.0,28086.0,0.19483742]
[1680651706688,0.102,28087.0,28086.0,0.19483742]
[1680651707998,0.102,28087.0,28086.0,1.35434798]
[1680651708861,0.1,28087.0,28086.0,1.34634798]
[1680651709087,0.102,28087.0,28086.0,1.35434798]
[1680651709531,0.102,28087.0,28086.0,1.28353156]
[1680651709748,0.102,28087.0,28086.0,1.41149315]
[1680651709972,0.102,28087.0,28086.0,1.72911896]
[1680651710187,0.102,28087.0,28086.0,1.65769298]
[1680651710407,0.102,28087.0,28086.0,1.71811291]
[1680651710621,0.102,28087.0,28086.0,1.65769298]
[1680651710812,0.102,28087.0,28086.0,1.59057655]
[1680651711037,0.102,28087.0,28086.0,1.52973139]
[1680651711246,0.1,28087.0,28086.0,1.58074721]
[1680651711460,0.101,28087.0,28086.0,1.60574721]
[1680651711670,0.101,28087.0,28086.0,1.5630598]
[1680651715714,0.101,28087.0,28086.0,1.43524738]
[1680651715923,0.101,28087.0,28086.0,1.5630598]
[1680651716145,0.101,28087.0,28086.0,1.50404398]
[1680651717246,0.101,28087.0,28086.0,1.55932278]
[1680651717454,0.101,28087.0,28086.0,1.43151036]
[1680651718100,0.101,28087.0,28086.0,1.43133036]
[1680651718558,0.101,28087.0,28086.0,1.43151036]
[1680651719895,0.101,28087.0,28086.0,1.30053156]
[1680651720113,0.101,28087.0,28086.0,1.37596345]
[1680651720348,0.101,28087.0,28086.0,1.37614345]
[1680651721196,0.101,28087.0,28086.0,1.30071156]
[1680651721407,0.101,28087.0,28086.0,1.36859094]
[1680651722043,0.101,28087.0,28086.0,1.30053156]
[1680651722236,0.101,28087.0,28086.0,1.30071156]
[1680651722436,0.101,28087.0,28086.0,1.37356598]
[1680651723566,0.101,28087.0,28086.0,1.97574381]
[1680651723567,0.05493219,28087.0,28086.0,1.97574381]
[1680651723796,0.05493219,28087.0,28086.0,1.89905635]
[1680651724653,0.05393219,28087.0,28086.0,1.87405635]
[1680651724863,0.05393219,28087.0,28086.0,1.90205635]
[1680651725501,0.05393219,28087.0,28086.0,2.07224029]
[1680651725969,0.05393219,28087.0,28086.0,1.90205635]
[1680651727436,0.05393219,28087.0,28086.0,1.84183156]
[1680651727649,0.05393219,28087.0,28086.0,2.19643156]
[1680651728080,0.05393219,28087.0,28086.0,1.84183156]
[1680651728535,0.05393219,28087.0,28086.0,2.19643156]
[1680651728971,0.05393219,28087.0,28086.0,2.16843156]
[1680651729188,0.05393219,28087.0,28086.0,2.40907637]
[1680651731621,0.05393219,28087.0,28086.0,2.57913972]
[1680651731846,0.05393219,28087.0,28086.0,2.22453972]
[1680651732280,0.05393219,28087.0,28086.0,2.22442759]
[1680651732737,0.05393219,28087.0,28086.0,2.30169167]
[1680651732947,0.05393219,28087.0,28086.0,2.22442759]
[1680651733586,0.05393219,28087.0,28086.0,2.01178278]
[1680651733842,0.05393219,28087.0,28086.0,2.22442759]
[1680651734279,0.05393219,28087.0,28086.0,2.40241759]
[1680651734497,0.05393219,28087.0,28086.0,2.22442759]
[1680651734724,0.05393219,28087.0,28086.0,2.40242759]
[1680651734950,0.0168538,28087.0,28086.0,2.357891]
[1680651735185,0.023387,28095.0,28093.0,0.3742]
[1680651735404,0.023387,28095.0,28094.0,1.46088937]
[1680651735866,0.023387,28095.0,28094.0,1.31899256]
[1680651736307,0.02299,28095.0,28094.0,1.31899256]
[1680651736550,0.02299,28100.0,28094.0,1.31899256]
[1680651736551,0.02299,28100.0,28099.0,1.5]
[1680651736785,0.02299,28107.0,28102.0,1.8742]
[1680651737019,0.02299,28108.0,28106.0,0.1]
[1680651737254,0.00329104,28108.0,28107.0,0.84098056]
[1680651737448,0.00329104,28108.0,28107.0,1.30146056]
[1680651737702,0.00329104,28108.0,28107.0,1.44335737]
[1680651737924,0.00329104,28108.0,28107.0,1.65580056]
[1680651739249,0.00329104,28108.0,28107.0,1.68380056]
[1680651739722,0.00329104,28108.0,28107.0,2.05594813]
[1680651740691,0.00329104,28108.0,28107.0,2.09156813]
[1680651740919,0.00329104,28108.0,28107.0,2.06368813]
[1680651741141,1.04e-06,28108.0,28107.0,2.24480813]
[1680651741337,1.04e-06,28108.0,28107.0,2.21680813]
[1680651741565,1.04e-06,28108.0,28107.0,2.24480813]
[1680651741804,1.04e-06,28108.0,28107.0,2.21680813]
[1680651742257,1.04e-06,28108.0,28107.0,2.07970813]
[1680651742482,1.04e-06,28108.0,28107.0,2.14241094]
[1680651742705,1.04e-06,28108.0,28107.0,2.11441094]
[1680651742918,0.02299,28112.0,28107.0,2.11441094]
[1680651742919,0.02098104,28111.0,28110.0,1.8742]
[1680651743134,0.02098104,28111.0,28110.0,2.84756556]
[1680651743358,0.02098104,28111.0,28110.0,2.36326556]
[1680651743617,0.02098104,28111.0,28110.0,2.54453556]
[1680651744298,0.02098104,28111.0,28110.0,2.54717556]
[1680651744514,0.02098104,28111.0,28110.0,2.57517556]
[1680651744728,0.02098104,28111.0,28110.0,2.54717556]
[1680651744945,0.02098104,28111.0,28110.0,2.57517556]
[1680651745193,0.02098104,28111.0,28110.0,2.54717556]
[1680651745414,0.02098104,28111.0,28110.0,2.57517556]
[1680651745640,0.02098104,28111.0,28110.0,2.57523556]
[1680651745855,0.02098104,28111.0,28110.0,2.57517556]
[1680651746591,0.02098104,28111.0,28110.0,2.54717556]
[1680651746811,0.02098104,28111.0,28110.0,2.63920956]
[1680651747030,0.02098104,28111.0,28110.0,3.01120956]
[1680651747246,0.02098104,28111.0,28110.0,3.36580956]
[1680651747483,0.02098104,28111.0,28110.0,3.39380956]
[1680651748796,0.02098104,28111.0,28110.0,3.03920956]
[1680651751056,0.02098104,28111.0,28110.0,3.01120956]
[1680651751280,0.02098104,28111.0,28110.0,3.03920956]
[1680651751766,0.02098104,28111.0,28110.0,3.05693713]
[1680651752000,1.04e-06,28111.0,28110.0,3.14113713]
[1680651752223,1.04e-06,28111.0,28110.0,3.53129713]
[1680651752905,0.02299,28112.0,28110.0,3.53129713]
[1680651752906,1.04e-06,28112.0,28111.0,0.7742]
[1680651753129,1.04e-06,28112.0,28111.0,1.45341756]
[1680651753355,1.04e-06,28112.0,28111.0,1.82838513]
[1680651753798,1.04e-06,28112.0,28111.0,1.86394513]
[1680651754309,1.04e-06,28112.0,28111.0,1.89194513]
[1680651756301,1.04e-06,28112.0,28111.0,2.29194513]
[1680651756730,1.04e-06,28112.0,28111.0,2.64564513]
[1680651758159,1.04e-06,28112.0,28111.0,2.64556293]
[1680651758381,1.04e-06,28112.0,28111.0,2.45914513]
[1680651758619,1.04e-06,28112.0,28111.0,2.60131558]
[1680651758855,1.04e-06,28112.0,28111.0,3.00395558]
[1680651759104,1.04e-06,28112.0,28111.0,3.37505558]
[1680651760029,1.04e-06,28112.0,28111.0,3.34705558]
[1680651760255,1.04e-06,28112.0,28111.0,3.37505558]
[1680651760441,1.04e-06,28112.0,28111.0,3.34705558]
[1680651760684,1.04e-06,28112.0,28111.0,3.28654513]
[1680651760905,1.04e-06,28112.0,28111.0,3.28390513]
[1680651761136,1.04e-06,28112.0,28111.0,3.98390513]
[1680651761356,1.04e-06,28112.0,28111.0,4.01190513]
[1680651761571,1.04e-06,28112.0,28111.0,3.98390513]
[1680651761792,1.04e-06,28112.0,28111.0,4.01190513]
[1680651762004,1.04e-06,28112.0,28111.0,3.98390513]
[1680651762227,1.04e-06,28112.0,28111.0,4.01190513]
[1680651762901,1.04e-06,28112.0,28111.0,4.06962279]
[1680651766392,1.04e-06,28112.0,28111.0,4.01190513]
[1680651769799,1.04e-06,28112.0,28111.0,3.31190513]
[1680651770667,1.04e-06,28112.0,28111.0,4.01190513]
[1680651771314,1.04e-06,28112.0,28111.0,4.18970513]
[1680651771536,1.04e-06,28112.0,28111.0,4.07740513]
[1680651771762,1.04e-06,28112.0,28111.0,4.10540513]
[1680651772837,1.04e-06,28112.0,28111.0,3.89190513]
[1680651773064,1.04e-06,28112.0,28111.0,3.52080513]
[1680651773278,1.04e-06,28112.0,28111.0,3.50307756]
[1680651774587,1.04e-06,28112.0,28111.0,2.80307756]
[1680651776619,1.04e-06,28112.0,28111.0,2.44847756]
[1680651778601,1.04e-06,28112.0,28111.0,2.11197756]
[1680651778834,1.04e-06,28112.0,28111.0,2.07641756]
[1680651779025,1.04e-06,28112.0,28111.0,2.10441756]
[1680651779276,1.04e-06,28112.0,28111.0,2.07641756]
[1680651779494,1.04e-06,28112.0,28111.0,2.10441756]
[1680651779686,1.04e-06,28112.0,28111.0,2.07641756]
[1680651779894,1.04e-06,28112.0,28111.0,2.41291756]
[1680651780323,1.04e-06,28112.0,28111.0,2.38491756]
[1680651781313,1.04e-06,28112.0,28111.0,2.41291756]
[1680651781527,1.04e-06,28112.0,28111.0,2.38491756]
[1680651781703,1.04e-06,28112.0,28111.0,2.41291756]
[1680651781910,1.04e-06,28112.0,28111.0,2.38491756]
[1680651782334,1.04e-06,28112.0,28111.0,2.41291756]
[1680651782573,0.0843,28116.0,28115.0,1.4742]
[1680651782574,0.084,28116.0,28115.0,1.4742]
[1680651782807,0.084,28116.0,28115.0,2.24094856]
[1680651782808,0.0843,28116.0,28115.0,2.24094856]
[1680651783013,0.0843,28116.0,28115.0,2.31430816]
[1680651784324,0.0843,28116.0,28115.0,2.34230816]
[1680651784479,0.0843,28116.0,28115.0,1.21430816]
[1680651784678,0.0843,28116.0,28115.0,1.24230816]
[1680651785149,0.0003,28118.0,28115.0,2.38284537]
[1680651785378,0.10699,28119.0,28117.0,0.55201]
[1680651785580,0.10699,28119.0,28118.0,1.08283237]
[1680651785581,0.02329,28119.0,28118.0,1.08283237]
[1680651785783,0.02299,28119.0,28118.0,2.19133237]
[1680651786101,0.02299,28119.0,28118.0,2.72213556]
[1680651786316,0.02299,28119.0,28118.0,2.7774646]
[1680651786528,0.02299,28119.0,28118.0,2.72213556]
[1680651787281,0.02299,28119.0,28118.0,2.92791556]
[1680651787509,0.02299,28119.0,28118.0,2.98435047]
[1680651787923,0.02299,28119.0,28118.0,2.92791556]
[1680651790537,0.02299,28119.0,28118.0,2.99646441]
[1680651790735,0.02299,28119.0,28118.0,2.92791556]
[1680651791153,0.02299,28119.0,28118.0,3.00266236]
[1680651793476,0.02299,28119.0,28118.0,3.0553606]
[1680651793692,0.02299,28119.0,28118.0,3.07308817]
[1680651794451,0.02299,28119.0,28118.0,3.11556986]
[1680651794993,0.02299,28119.0,28118.0,3.24319468]
[1680651795492,0.02299,28119.0,28118.0,3.11556986]
[1680651795997,0.02299,28119.0,28118.0,3.11557986]
[1680651796444,0.02299,28119.0,28118.0,3.15807419]
[1680651796893,0.02299,28119.0,28118.0,3.32776375]
[1680651797312,0.02299,28119.0,28118.0,3.40080575]
[1680651797758,0.02299,28119.0,28118.0,3.32776375]
[1680651798399,0.02299,28119.0,28118.0,3.15752619]
[1680651798619,0.02299,28119.0,28118.0,3.51212619]
[1680651799906,0.02299,28119.0,28118.0,3.51211619]
[1680651800583,0.02299,28119.0,28118.0,3.91211619]
[1680651802560,0.02299,28119.0,28118.0,3.69969513]
[1680651803864,0.02299,28119.0,28118.0,3.91253571]
[1680651805543,0.02299,28119.0,28118.0,3.97326056]
[1680651805775,0.02299,28119.0,28118.0,3.69969513]
[1680651806001,0.02299,28119.0,28118.0,3.97112511]
[1680651806201,0.02299,28119.0,28118.0,3.61652511]
[1680651807591,0.02299,28119.0,28118.0,3.61658511]
[1680651808224,0.02299,28119.0,28118.0,3.61652511]
[1680651808998,0.02299,28119.0,28118.0,2.93079311]
[1680651809224,0.10729,28119.0,28118.0,3.08333696]
[1680651810834,0.10729,28119.0,28118.0,2.87050355]
[1680651811043,0.10729,28119.0,28118.0,3.08333696]
[1680651811260,0.10729,28119.0,28118.0,2.87050355]
[1680651811920,0.16275339,28119.0,28118.0,1.816703]
[1680651812148,0.19189,28119.0,28118.0,0.4007]
[1680651812372,0.19159,28119.0,28118.0,0.4007]
[1680651812598,0.60530772,28119.0,28118.0,0.4007]
[1680651812841,0.60560772,28119.0,28118.0,0.416703]
[1680651813063,0.60560772,28119.0,28118.0,0.20532749]
[1680651813295,0.60560772,28119.0,28118.0,0.23332749]
[1680651813512,0.60560772,28119.0,28118.0,0.20532749]
[1680651813734,0.60560772,28119.0,28118.0,0.20732749]
[1680651813954,0.60560772,28119.0,28118.0,0.20532749]
[1680651814179,0.19189,28119.0,28118.0,0.19132449]
[1680651814401,0.60970696,28119.0,28118.0,0.19132449]
[1680651815519,0.19189,28119.0,28118.0,0.18932449]
[1680651815743,0.19489,28119.0,28118.0,0.19032449]
[1680651816034,0.223826,28119.0,28118.0,0.18932449]
[1680651816258,0.226826,28119.0,28118.0,0.19032449]
[1680651816487,0.216526,28119.0,28118.0,0.19032449]
[1680651816708,0.18459,28119.0,28118.0,0.19032449]
[1680651816927,0.18159,28119.0,28118.0,0.18932449]
[1680651817148,0.18459,28119.0,28118.0,0.19132449]
[1680651817372,0.18159,28119.0,28118.0,0.18932449]
[1680651818242,0.18459,28119.0,28118.0,0.19132449]
[1680651818453,0.59639414,28119.0,28118.0,0.18932449]
[1680651818667,0.65608714,28119.0,28118.0,0.19132449]
[1680651818879,0.18459,28119.0,28118.0,0.19132449]
[1680651819103,0.57531288,28119.0,28118.0,0.18932449]
[1680651819317,0.62653816,28119.0,28116.0,0.00018]
[1680651819532,0.1675,28117.0,28112.0,0.1277138]
[1680651819760,0.33472785,28118.0,28113.0,0.06676006]
[1680651819985,0.1682,28114.0,28113.0,0.06676006]
[1680651821737,0.1682,28114.0,28113.0,0.016006]
[1680651821953,0.1682,28114.0,28113.0,0.009]
[1680651822437,0.1682,28114.0,28113.0,0.025006]
[1680651822647,0.1682,28114.0,28113.0,0.016006]
[1680651823078,0.1682,28114.0,28113.0,0.018006]
[1680651823305,0.1682,28114.0,28113.0,0.08836954]
[1680651823954,0.0843,28114.0,28113.0,0.08636954]
[1680651824161,0.0843,28114.0,28113.0,0.08836954]
[1680651824502,0.0843,28114.0,28113.0,0.4430801]
[1680651824702,0.0843,28114.0,28113.0,0.4431401]
[1680651825746,0.0846,28116.0,28113.0,0.43748385]
[1680651825969,0.0843,28116.0,28114.0,0.35471056]
[1680651826210,0.0843,28116.0,28115.0,0.048016]
[1680651826423,0.0843,28116.0,28115.0,0.40272656]
[1680651826633,0.0843,28116.0,28115.0,0.40278656]
[1680651827342,0.0843,28116.0,28115.0,0.47599733]
[1680651827764,0.0893,28116.0,28115.0,0.47699733]
[1680651828315,0.0843,28116.0,28115.0,0.47599733]
[1680651828533,0.08472706,28116.0,28115.0,0.47599733]
[1680651828778,0.08472706,28116.0,28115.0,0.48499733]
[1680651829828,0.00042706,28116.0,28115.0,0.48499733]
[1680651830061,0.00042706,28116.0,28115.0,0.85919733]
[1680651832949,0.00042706,28116.0,28115.0,0.85919733]
[1680651833200,0.00042706,28116.0,28115.0,0.85913733]
[1680651835467,0.00042706,28116.0,28115.0,0.85919733]
[1680651836610,0.00042706,28116.0,28115.0,0.85913733]
[1680651836811,0.00042706,28116.0,28115.0,0.82712633]
[1680651839889,0.08472706,28116.0,28115.0,0.82712633]
[1680651846434,0.08472706,28116.0,28115.0,0.82718633]
[1680651846655,0.08472706,28116.0,28115.0,0.82712633]
[1680651849811,0.00042706,28116.0,28115.0,0.82718633]
[1680651850243,0.00042706,28116.0,28115.0,0.81818633]
[1680651850666,0.00042706,28116.0,28115.0,0.82712633]
[1680651852965,0.00042706,28116.0,28115.0,0.95484013]
[1680651853615,0.00042706,28116.0,28115.0,0.82712633]
[1680651854491,0.00042706,28116.0,28115.0,0.95484013]
[1680651855898,0.00036089,28116.0,28115.0,0.95484013]
[1680651857156,0.00036089,28116.0,28115.0,0.9974114]
[1680651859860,0.00036089,28116.0,28115.0,0.9974714]
[1680651862788,0.00036089,28116.0,28115.0,0.9974114]
[1680651864252,0.00036089,28116.0,28115.0,1.21030877]
[1680651864680,0.00036089,28116.0,28115.0,0.9974714]
[1680651864896,0.00036089,28116.0,28115.0,0.9974114]
[1680651865295,0.00036089,28116.0,28115.0,1.21024877]
[1680651867313,0.00036089,28116.0,28115.0,1.137038]
[1680651868187,0.00036089,28116.0,28115.0,0.96675293]
[1680651871039,0.00036089,28116.0,28115.0,0.96681293]
[1680651871879,0.00036089,28116.0,28115.0,0.96675293]
[1680651872863,0.00036089,28116.0,28115.0,0.96681293]
[1680651874869,0.41109094,28117.0,28115.0,0.96693293]
[1680651875094,0.41094094,28117.0,28116.0,0.52527464]
[1680651875265,0.0759,28118.0,28116.0,0.54133964]
[1680651875470,0.0756,28118.0,28117.0,0.1279229]
[1680651875797,0.0756,28118.0,28117.0,0.49863746]
[1680651876416,0.44110519,28118.0,28117.0,0.49863746]
[1680651876618,0.44140519,28118.0,28117.0,0.49863746]
[1680651876789,0.44540519,28118.0,28117.0,0.49863746]
[1680651876990,0.44540519,28118.0,28117.0,0.49869746]
[1680651877449,0.0789,28118.0,28117.0,0.49869746]
[1680651877625,0.0786,28118.0,28117.0,0.49869746]
[1680651878155,0.0786,28118.0,28117.0,0.48269346]
[1680651880357,0.0786,28118.0,28117.0,0.49869746]
[1680651880560,0.0786,28118.0,28117.0,0.35477056]
[1680651883361,0.0786,28118.0,28117.0,0.19699445]
[1680651892020,0.50561971,28118.0,28117.0,0.19699445]
[1680651892238,0.50591971,28118.0,28117.0,0.19699445]
[1680651892726,0.56540068,28118.0,28117.0,0.19699445]
[1680651892928,0.50591971,28118.0,28117.0,0.19699445]
[1680651894319,0.50591971,28118.0,28116.0,0.00018]
[1680651894543,0.1512,28117.0,28115.0,0.1281029]
[1680651894763,0.60178552,28116.0,28115.0,0.1279229]
[1680651894982,0.60178552,28116.0,28115.0,0.00018]
[1680651895196,0.60178552,28116.0,28114.0,6e-05]
[1680651895420,0.0756,28115.0,28113.0,0.29866698]
[1680651895647,0.52648552,28116.0,28113.0,0.1281029]
[1680651895648,0.1511,28114.0,28113.0,0.1281029]
[1680651895868,0.21252335,28114.0,28113.0,0.1281029]
[1680651896127,0.21252335,28114.0,28113.0,0.00012]
[1680651896128,0.22497235,28114.0,28113.0,0.00012]
[1680651896344,0.1511,28114.0,28112.0,0.1281029]
[1680651896637,0.1513,28113.0,28112.0,0.1279229]
[1680651896881,0.1513,28113.0,28111.0,0.29854698]
[1680651897086,0.012449,28114.0,28111.0,0.1279229]
[1680651897087,0.1512,28112.0,28111.0,0.1279229]
[1680651897305,0.53273009,28112.0,28110.0,0.1281029]
[1680651897524,0.1512,28111.0,28110.0,6e-05]
[1680651897747,0.1512,28111.0,28109.0,0.00012]
[1680651897998,0.1512,28110.0,28108.0,0.22225279]
[1680651898219,0.0753,28109.0,28108.0,0.19380479]
[1680651898452,0.16619,28109.0,28108.0,0.1280429]
[1680651898675,0.1511,28109.0,28107.0,0.1281029]
[1680651898888,0.009,28111.0,28107.0,0.1281029]
[1680651898889,0.1513,28108.0,28107.0,0.1281029]
[1680651899129,0.1513,28108.0,28107.0,0.07795083]
[1680651899345,0.1513,28108.0,28107.0,0.07777083]
[1680651900026,0.1513,28108.0,28106.0,0.1281029]
[1680651900249,0.1516,28107.0,28106.0,0.1279829]
[1680651900481,0.1516,28107.0,28106.0,0.1281029]
[1680651900915,0.1516,28107.0,28106.0,0.1291029]
[1680651901148,0.1516,28107.0,28106.0,0.00018]
[1680651901372,0.1606,28107.0,28106.0,0.00118]
[1680651901584,0.21026592,28107.0,28106.0,0.001]
[1680651902018,0.1606,28107.0,28106.0,0.001]
[1680651902872,0.54642938,28107.0,28106.0,0.001]
[1680651903089,0.55888138,28107.0,28106.0,0.001]
[1680651904429,0.54642938,28107.0,28106.0,0.001]
[1680651904649,0.55888138,28107.0,28106.0,0.001]
[1680651905112,0.54642938,28107.0,28106.0,0.001]
[1680651905983,0.54642938,28107.0,28106.0,0.00093382]
[1680651906408,0.55888138,28107.0,28106.0,0.00093382]
[1680651906630,0.54642938,28107.0,28106.0,0.00093382]
[1680651906839,0.55888138,28107.0,28106.0,0.00093382]
[1680651907052,0.54642938,28107.0,28106.0,0.00093382]
[1680651909677,0.54672938,28107.0,28106.0,0.00093382]
[1680651910107,0.54642938,28107.0,28106.0,0.00093382]
[1680651910967,0.54632938,28107.0,28106.0,0.00093382]
[1680651911416,0.60223742,28107.0,28106.0,0.00093382]
[1680651911901,0.54632938,28107.0,28106.0,0.00093382]
[1680651914690,0.55878138,28107.0,28106.0,0.00093382]
[1680651914991,0.58200556,28107.0,28106.0,0.00093382]
[1680651915368,0.90439236,28107.0,28106.0,0.00093382]
[1680651915573,0.58200556,28107.0,28106.0,0.00093382]
[1680651915795,0.70105161,28107.0,28106.0,0.00093382]
[1680651916223,1.12115023,28107.0,28106.0,0.00093382]
[1680651916440,1.05500053,28107.0,28106.0,0.00093382]
[1680651916652,0.1,28106.0,28101.0,0.08257413]
[1680651916873,0.076,28102.0,28101.0,0.08257413]
[1680651917089,0.076,28102.0,28101.0,0.08263413]
[1680651917943,0.076,28102.0,28101.0,0.0209]
[1680651918194,0.78512802,28102.0,28101.0,0.0209]
[1680651918422,0.91771572,28102.0,28101.0,0.0219]
[1680651919300,0.89571572,28102.0,28101.0,0.0209]
[1680651919576,0.92071572,28102.0,28101.0,0.0219]
[1680651920213,0.97989816,28102.0,28101.0,0.0219]
[1680651920660,0.89571572,28102.0,28101.0,0.0209]
[1680651920881,0.86973272,28102.0,28101.0,0.0219]
[1680651922158,0.86979272,28102.0,28101.0,0.02078238]
[1680651922364,0.86973272,28102.0,28101.0,0.02078238]
[1680651922581,0.92533672,28102.0,28101.0,0.02078238]
[1680651922800,0.93779072,28102.0,28101.0,0.02078238]
[1680651923023,1.03409049,28102.0,28101.0,0.02078238]
[1680651923264,1.02163649,28102.0,28101.0,0.02078238]
[1680651923486,1.03409049,28102.0,28101.0,0.02078238]
[1680651924356,0.177,28102.0,28101.0,0.02078238]
[1680651924608,0.101,28102.0,28101.0,0.02078238]
[1680651925055,0.10133283,28102.0,28101.0,0.02078238]
[1680651925267,0.07633283,28102.0,28101.0,0.01978238]
[1680651925476,0.09933283,28102.0,28101.0,0.02078238]
[1680651926342,0.07633283,28102.0,28101.0,0.01978238]
[1680651926585,0.07633283,28102.0,28101.0,0.17869219]
[1680651926586,0.02333283,28102.0,28101.0,0.17869219]
[1680651926817,0.02333283,28102.0,28101.0,0.39150594]
[1680651927049,0.02333283,28102.0,28101.0,0.44843514]
[1680651927297,0.00033283,28102.0,28101.0,0.39062594]
[1680651927508,0.00033283,28102.0,28101.0,0.46736694]
[1680651927720,0.02133283,28102.0,28101.0,0.46836694]
[1680651927957,0.00033283,28102.0,28101.0,0.55816667]
[1680651928170,0.00133283,28102.0,28101.0,0.56916667]
[1680651929737,0.00033283,28102.0,28101.0,0.55816667]
[1680651929958,0.00133283,28102.0,28101.0,0.56916667]
[1680651930179,0.00033283,28102.0,28101.0,0.55816667]
[1680651930381,0.00033283,28102.0,28101.0,0.56204667]
[1680651931530,0.00033283,28102.0,28101.0,0.56216667]
[1680651931764,0.00033283,28102.0,28101.0,0.63816667]
[1680651932214,0.00033283,28102.0,28101.0,0.56216667]
[1680651932439,0.00033283,28102.0,28101.0,0.49468594]
[1680651932664,0.00033283,28102.0,28101.0,0.45183139]
[1680651932890,0.00033283,28102.0,28101.0,0.45201139]
[1680651933098,0.00033283,28102.0,28101.0,0.55201139]
[1680651933511,0.00033283,28102.0,28101.0,0.55112512]
[1680651933719,0.00033283,28102.0,28101.0,0.49379967]
[1680651933936,0.00033283,28102.0,28101.0,0.57819967]
[1680651934362,0.00033283,28102.0,28101.0,0.95239967]
[1680651935241,0.0003,28109.0,28103.0,0.3742]
[1680651935467,0.0003,28109.0,28102.0,0.1]
[1680651935468,0.39211762,28112.0,28106.0,0.17789]
[1680651935716,0.39211762,28112.0,28107.0,0.51261637]
[1680651936608,0.39311762,28112.0,28108.0,0.05656785]
[1680651936836,0.39211762,28112.0,28109.0,0.35471056]
[1680651937066,0.39511762,28112.0,28109.0,0.35471056]
[1680651937286,0.39211762,28112.0,28109.0,0.35471056]
[1680651938015,0.44978075,28111.0,28109.0,0.3546074]
[1680651938239,0.45008075,28111.0,28109.0,0.3546074]